Cogmind - Beta 15 @@@ ROGUE MODE // 2025.06.29 @ 17:56:43 Player: Windjigo Result: Destroyed by VT-Z2H(R) with Subdweller Shrapnel Launcher Performance ------------- Evolutions (0) 0 Regions Visited (2) 400 Robots Destroyed (35) 175 Value Destroyed (766) 766 Prototype IDs (11) 220 Alien Tech Used (0) 0 Bonus (0) 0 TOTAL SCORE: 1561 Bonus ------- None Cogmind --------- Core Integrity 0/250 Matter 298/300 Energy 37/100 System Corruption 0% Temperature Cool (0) Movement Core (50) Location -10/Subcaves Parts ------- > --- POWER (1) -------- (None) > --- PROPULSION (2) --- (None) > --- UTILITY (2) ------ (None) > --- WEAPON (2) ------- (None) > --- INVENTORY (5) ---- Arachnoskeleton Scrap Shield Peak State ------------ > --- POWER ------------ Ion Engine > --- PROPULSION ------- Light Treads Spiked Treads > --- UTILITY ---------- Medium Storage Unit Makeshift Light Armor Plating > --- WEAPON ----------- Heavy Riot Gun Subdweller Machine Gun > --- INVENTORY -------- Arachnoskeleton Signal Interpreter Scrap Shield Battle Rifle Grenade Launcher Datajack Mining Laser [Rating: 18] Favorites ----------- Power Ion Engine Engine Ion Engine Propulsion Light Treads Treads Light Treads Wheel Compact Wheel Utility Medium Storage Unit Device Sensor Array Storage Medium Storage Unit Protection Makeshift Light Armor Plating Weapon Assault Rifle Energy Gun Heavy Riot Gun Energy Cannon Beam Cannon Ballistic Gun Assault Rifle Ballistic Cannon Light Cannon Launcher Grenade Launcher Special Weapon Mining Laser Build | -11 -10 -10 ------- Run | Yrd Mat Sub Slots Evolved . | . . . Power . | . . . Propulsion . | . . . Utility . | . . . Weapon . | . . . Parts Attached 24 | 6 11 7 Power 3 | 2 1 . Engine 3 | 2 1 . Core . | . . . Reactor . | . . . Propulsion 7 | 1 5 1 Treads 5 | . 4 1 Leg . | . . . Wheel 2 | 1 1 . Hover . | . . . Flight . | . . . Utility 6 | 1 3 2 Device 1 | . 1 . Storage 4 | 1 2 1 Processor . | . . . Hackware . | . . . Protection 1 | . . 1 Artifact . | . . . Weapon 8 | 2 2 4 Energy Gun 1 | . . 1 Energy Cannon 1 | . . 1 Ballistic Gun 3 | 2 . 1 Ballistic Cannon 1 | . . 1 Launcher 1 | . 1 . Special Weapon 1 | . 1 . Impact Weapon . | . . . Slashing Weapon . | . . . Piercing Weapon . | . . . Special Melee Weapon . | . . . Unidentified Prototypes . | . . . Parts Lost 6 | . 3 3 Power 2 | . 1 1 Propulsion 2 | . 2 . Utility . | . . . Weapon 2 | . . 2 Highest Loss Streak 2 | . 2 1 To Critical Strikes . | . . . Average Backups 9 | 5 9 8 Power 1 | . 1 . Propulsion 1 | 2 1 . Utility 2 | . 2 3 Weapon 3 | 1 3 3 Tool/Special . | . . . Unused Backups 12 | . 1 11 Power 3 | . . 3 Propulsion 1 | . . 1 Utility 5 | . . 5 Weapon 2 | . 1 1 Tool/Special 1 | . . 1 Average Slot Usage (%) 98 | . 97 98 Engine 13 | . 13 14 Treads 25 | . 24 28 Wheel 2 | . 3 . Device 10 | . 12 4 Storage 14 | . 14 13 Protection 2 | . . 8 Energy Gun 2 | . . 8 Ballistic Gun 23 | . 27 12 Ballistic Cannon 1 | . . 5 Peak Build Rating 18 | 5 8 18 Average Rating 8 | 4 7 13 On Entrance 4 | . 5 8 Naked Turns 1 | . . 1 Heaviest Build 27 | 14 21 27 Greatest Support 40 | 16 40 40 Greatest Overweight (x) . | . . . Average Overweight (x) . | . . . Largest Inventory Capacity 25 | 8 10 25 Average Capacity 9 | 7 9 9 Most Carried 10 | 7 10 10 Average Carried 9 | 5 9 9 Final Capacity 10 | 8 10 5 Final Carried 10 | 6 10 5 Class Distribution -------------------- 90% | Mutant 9% | Derelict-Mutant Dominant Class ---------------- Mutant | -10/Materials Mutant | -10/Subcaves Resources | -11 -10 -10 ----------- Run | Yrd Mat Sub Matter Collected 1109 | 304 656 149 Remotely . | . . . Salvage Created 1089 | 110 893 86 Parts 73 | 11 58 4 Haulers Intercepted 2 | . 2 . Recyclers Shooed 1 | . 1 . Parts Field Recycled . | . . . Retrieved Matter . | . . . Parts Self-Destructed 5 | . . 5 Prevented . | . . . Kills | -11 -10 -10 ------- Run | Yrd Mat Sub Combat Hostiles Destroyed 25 | . 23 2 Guns 22 | . 21 1 Cannons 1 | . . 1 AOE 2 | . 2 . Classes Destroyed 7 | 1 5 1 Tunneler 5 | 5 . . Hauler 2 | . 2 . Operator 1 | . 1 . Watcher 2 | . 2 . Swarmer 9 | . 9 . Grunt 14 | . 14 . Subdweller 2 | . . 2 Best Kill Streak 4 | 4 4 1 Combat Bots Only 4 | . 4 1 Max Kills in Single Turn 2 | 1 2 1 Gunslinging 1 | . 1 . Exploded 2 | . 2 . Melee . | . . . Uniques/NPCs Destroyed . | . . . Combat | -11 -10 -10 -------- Run | Yrd Mat Sub Hostile Shots Fired 160 | . 137 23 Missed 50 | . 43 7 Hits 110 | . 94 16 Projectile 110 | . 94 16 AOE 4 | . . 4 Damage Taken 1470 | . 975 495 Core 265 | . 118 147 Absorbed by Shields . | . . . Regen/Repaired (Parts) 169 | . 169 . Core Remaining (%) 100 | 100 . . Volleys Fired 112 | 8 91 13 Largest 2 | 2 2 2 Hottest 100 | 40 100 90 Shots Fired 213 | 16 173 24 Gun 201 | 16 169 16 Cannon 8 | . . 8 Launcher 1 | . 1 . Special 3 | . 3 . Kinetic 207 | 16 169 22 Thermal 3 | . 3 . Explosive 1 | . 1 . Electromagnetic 2 | . . 2 Robot Hit Streak 12 | 5 12 11 Robot Miss Streak 5 | 3 5 1 Penetration Max . | . . . Secondary Targets 4 | . 4 . Max Gunslinging Chain 1 | . 1 . Shots Hit Robots 125 | 9 99 17 Core Hits 50 | 5 41 4 Critical Kills . | . . . Critical Parts Destroyed . | . . . Critical Strikes . | . . . Melee Attacks . | . . . Impact . | . . . Slashing . | . . . Piercing . | . . . Sneak Attacks . | . . . Combat Hostiles . | . . . Follow-up Attacks . | . . . Damage Inflicted 1825 | 113 1467 245 Guns 1581 | 113 1327 141 Cannons 104 | . . 104 Explosions 140 | . 140 . Melee . | . . . Ramming . | . . . Kinetic 1662 | 113 1327 222 Thermal . | . . . Explosive 140 | . 140 . Electromagnetic 23 | . . 23 Impact . | . . . Slashing . | . . . Piercing . | . . . Highest Corruption . | . . . Average Corruption . | . . . Corruption Purged . | . . . Corruption Blocked . | . . . Overload Shots . | . . . Overflow Damage 6 | . 6 . Projectiles . | . . . Explosions 6 | . 6 . Melee . | . . . Knockbacks 1 | . . 1 Impact . | . . . Kinetic 1 | . . 1 Secondary . | . . . Self-Inflicted Damage . | . . . Shots . | . . . Rammed . | . . . Targets Rammed . | . . . Kicked . | . . . Crushed . | . . . Highest Temperature 40 | . 40 . Average Temperature 14 | . 14 . Received Heat Transfer 426 | . 360 66 Siege Activations . | . . . Martial Activations . | . . . Shielding Activations . | . . . Robots Disrupted . | . . . Combat Hostiles . | . . . Robots Corrupted . | . . . Combat Hostiles . | . . . Parts Fried . | . . . Impact Corruptions . | . . . Robots Melted . | . . . Combat Hostiles . | . . . Parts Melted 1 | . . 1 Heat Transferred . | . . . Parts Sabotaged . | . . . Parts Stolen . | . . . Parts Stripped . | . . . Power Chain Reactions . | . . . Alert | -11 -10 -10 ------- Run | Yrd Mat Sub Maximum Alert Level 1 | . 1 . Low Security (%) 97 | 100 97 . Level 1 2 | . 2 . Level 2 . | . . . Level 3 . | . . . Level 4 . | . . . Level 5 . | . . . High Security . | . . . Max Security . | . . . Peak Influence 213 | 5 213 . Initial . | . . . Average 88 | . 95 . Influence Increases 689 | 25 664 . Destroy 0b10 Robot/C 460 | . 460 . Destroy 0b10 Robot/NC 50 | 25 25 . Destroy Leader 98 | . 98 . Successful Hack 8 | . 8 . Select Force Hacks 30 | . 30 . Disable Machine 30 | . 30 . Destroy Structure 13 | . 13 . Influence Decreases 689 | 25 518 146 Entered New Map 71 | . . 71 Time Decay 578 | 25 488 65 Lost Part 40 | . 30 10 Squads Dispatched 6 | . 6 . Investigation 5 | . 5 . Extermination . | . . . Reinforcement 1 | . 1 . Assault . | . . . Garrison . | . . . Intercept . | . . . Searches Triggered . | . . . Construction Impeded . | . . . Haulers Reinforced . | . . . Active Scanning Responses . | . . . Cargo Convoy Interrupts . | . . . Stealth | -11 -10 -10 --------- Run | Yrd Mat Sub Distress Signals . | . . . Communications Jammed . | . . . Distress Signals . | . . . Times Spotted 42 | . 36 6 Peak Tracking Total 6 | . 6 4 Tactical Retreats . | . . . Traps | -11 -10 -10 ------- Run | Yrd Mat Sub Traps Triggered 3 | . 2 1 Indirectly . | . . . Trap Hack Attempts . | . . . Triggered . | . . . Disarmed . | . . . Reprogrammed . | . . . Reused . | . . . Traps Extracted . | . . . Installed . | . . . Triggered . | . . . Machines | -11 -10 -10 ---------- Run | Yrd Mat Sub Machines Disabled 3 | . 2 1 Max in Single Turn 1 | . 1 1 Machines Repaired . | . . . Machines Dismantled . | . . . Machines Sabotaged . | . . . Overloaded Fab Kills . | . . . Hacking | -11 -10 -10 --------- Run | Yrd Mat Sub Machines Accessed 12 | . 10 2 Terminals 7 | . 7 . Fabricators . | . . . Repair Stations 1 | . 1 . Recycling Units 2 | . 2 . Scanalyzers . | . . . Garrison Access . | . . . Total Hacks 43 | . 29 14 Successful 26 | . 12 14 Failed 17 | . 17 . Catastrophic 2 | . 2 . Database Lockouts . | . . . Manual 16 | . 16 . Terminals 19 | . 19 . Fabricators . | . . . Repair Stations 5 | . 5 . Recycling Units 5 | . 5 . Scanalyzers . | . . . Garrison Access . | . . . Terminal Hacks 16 | . 2 14 Record 13 | . . 13 Robot Analysis 1 | . 1 . Zone Layout 1 | . 1 . Proto ID Catalog 1 | . . 1 Fabricator Hacks . | . . . Repair Station Hacks 4 | . 4 . Scan Component 2 | . 2 . Repair 2 | . 2 . Recycling Unit Hacks . | . . . Scanalyzer . | . . . Garrison Access Hacks . | . . . Unauthorized Hacks 6 | . 6 . Terminals 5 | . 5 . Botnet 5 | . 5 . Fabricators . | . . . Repair Stations . | . . . Recycling Units 1 | . 1 . Tunnel 1 | . 1 . Scanalyzers . | . . . Garrison Access . | . . . Data Cores Recovered 1 | . 1 . Used . | . . . Hacking Detections 9 | . 9 . Full Trace Events 4 | . 4 . Feedback Events . | . . . Feedback Blocked . | . . . Robot Schematics Acquired . | . . . Robots Built . | . . . Authchips . | . . . Time . | . . . Total Robot Build Rating . | . . . Part Schematics Acquired . | . . . Parts Built . | . . . Authchips . | . . . Time . | . . . Total Part Build Rating . | . . . Parts Repaired 2 | . 2 . Time 52 | . 52 . Parts Recycled . | . . . Recycled Matter . | . . . Retrieved Matter . | . . . Retrieved Components . | . . . Parts Scanalyzed . | . . . Part Schematics Acquired . | . . . Parts Damaged . | . . . Bothacking | -11 -10 -10 ------------ Run | Yrd Mat Sub Used RIF Installer . | . . . Robots Hacked . | . . . Non-combat . | . . . Combat . | . . . Robot Hacks Applied . | . . . Relay Couplers Released . | . . . Fabnet Peak Effective % . | . . . Robots Rewired . | . . . Allies Hacked . | . . . Hacks Repelled . | . . . Allies | -11 -10 -10 -------- Run | Yrd Mat Sub Total Allies . | . . . Largest Group . | . . . Highest-Rated Group . | . . . Highest-Rated Ally . | . . . Total Orders . | . . . Ally Attacks . | . . . Total Damage . | . . . Kills . | . . . Allies Corrupted . | . . . Allies Melted . | . . . Intel | -11 -10 -10 ------- Run | Yrd Mat Sub Active Infowar (turns) 2086 | . 1880 206 Sensors 2086 | . 1880 206 Robot Analysis Total 1 | . 1 . Derelict Logs Recovered . | . . . Drone Launches . | . . . Drone Recoveries . | . . . Exploration | -11 -10 -10 ------------- Run | Yrd Mat Sub Turns Passed 2898 | 171 2060 667 Spaces Moved 1454 | 126 961 367 Core 12 | 12 . . Treads 1145 | . 778 367 Legs . | . . . Wheels 297 | 114 183 . Hover . | . . . Flight . | . . . Fastest Speed 50 | 50 100 160 Average Speed 146 | 95 148 160 Slowest Speed 160 | 100 160 160 Overloaded Moves . | . . . Propulsion Burnouts . | . . . Robots Hopped . | . . . Potential Cave-ins . | . . . Cave-ins Triggered . | . . . Exploration Rate (%) 41 | 5 97 22 Regions Visited 2 Branch Regions 1 Pre-discovered Areas 2 | . 1 1 Known Exits Taken . | . . . Unknown Exits Taken 2 | 1 1 . Scrap Searched 8 | . . 8 Spaces Dug . | . . . Terrain Destroyed 11 | . 11 . Melee . | . . . Projectile . | . . . AOE 11 | . 11 . Terrain Rammed . | . . . Walls Destroyed . | . . . Machines Disabled . | . . . Actions | -11 -10 -10 --------- Run | Yrd Mat Sub Total 2001 | 158 1413 430 Wait 349 | 11 331 7 Move 1452 | 125 960 367 Hop . | . . . Pick Up 32 | 8 10 14 Fast Attach 11 | 3 5 3 Attach 11 | 2 5 4 Detach 1 | . 1 . Swap 8 | 1 5 2 Drop 25 | . 5 20 Fire 112 | 8 91 13 Melee . | . . . Ram . | . . . Kick . | . . . Crush . | . . . Escape Stasis . | . . . Rewire . | . . . Trap . | . . . Miscellaneous . | . . . Route ------- -11/Scrapyard -10/Materials (discovered 6 exits: [*Mat x3] / [*Min x2] / *Sub) -10/Subcaves (discovered 1 exit: [*Mat]) History --------- Turn | Location | Event 36 | -11/Scrapyard | Discovered new exit (range 16) 172 | -11/Scrapyard | Entered Materials 300 | -10/Materials | Build established: Mutant 438 | -10/Materials | Discovered new exit (range 8) 1373 | -10/Materials | Discovered new exit (range 4) 1533 | -10/Materials | Discovered new exit (range 8) 1584 | -10/Materials | Discovered new exit (range 11) 1744 | -10/Materials | Discovered new exit (range 8) 1748 | -10/Materials | Discovered new exit (range 12) 2041 | -10/Materials | Repaired Assault Rifle 2068 | -10/Materials | Repaired Lgt. Treads 2232 | -10/Materials | Entered Subcaves 2233 | -10/Subcaves | Approached by a straggling Scientist 2377 | -10/Subcaves | Core integrity fell below 50% 2640 | -10/Subcaves | Visited 4L-MR0's lab 2661 | -10/Subcaves | Found Arachnoskeleton 2716 | -10/Subcaves | Shifting Twisted Machinery released Mak. Hammer 2758 | -10/Subcaves | Visited Clippyterm 2763 | -10/Subcaves | Learned location of Section 7 (-2) 2763 | -10/Subcaves | Learned Factory fabricator intel 2888 | -10/Subcaves | Discovered new exit (range 12) 2890 | -10/Subcaves | Core integrity fell below 20% 2899 | -10/Subcaves | Destroyed by VT-Z2H(R) with Subdweller Shrapnel Launcher Last Messages --------------- with the algorithm, because no matter how much data I collect to feed it, half the time it still manages to suggest unhelpful sample queries and responses. --DD-NU8 5R-YV2(c): "I think it's somewhere east of here" 5R-YV2(c): "I think it's somewhere southeast of here" 02880_ EQ-5S3(z): "She is not going to be happy we haven't found any suitable candidates yet." 02888_ EXIT=FOUND 02889_ OX-K2C(R): "LEAVESUB!" 02893_ Ion Engine destroyed. 5R-YV2(c): "I think it's somewhere southeast of here" 02896_ Dropped Lgt. Treads. 02896_ Dropped Spk. Treads. 02897_ Dropped Med. Storage Unit. 02897_ Dropped Mak. Light Armor Plating. 02898_ Dropped Hvy. Riot Gun. 02898_ Dropped Sub. Machine Gun. Map ----- +----------------------------------------------------+ | ?????????????????????????????????????????????????? | | ?????????????????????????????????????????????????? | | ?????????????????????????????????????????????????? | | ?????????????????????????????????????????????????? | | ?????????????????????????????????????????????????? | | ?????????????????????????????????????????????????? | | ?????????????????????????????????????????????????? | | ?????????????????????????????????????????????????? | | ?????????????????????????????????????????????????? | | ?????????????????????????????????????????????????? | | ?????????????????????????????????????????????????? | | ?????????????????????????????????????????????????? | | ?????????????????????????????????????????????????? | | ??????????""#?????????????????????#??????????????? | | ??????????" ###????????????????? ???????????????? | | ??????????? ???????????????? ##??????????????? | | ??????????? ""?????????????? ###????????????? | | ???????????# """?????????????? ?????????????? | | ???????????#"" ????????????? #??????????????? | | ?????? ????## ##??????????## #???????????????? | | ????? "???# ###?#######"#!#* ### ????????????? | | ????## ""#?# ###;; ; RR% [ ????????????? | | ????# """???# "" %% ?????????????? | | ?????#""##?## c R "" # #?????????? | | ###### ### ; [][ """ #?????????? | | # ## !!@= R < #????????? | | #% /|! ##????????????? | | % [ #####?????????????? | | % ## ##?????????????????? | | % ### ; #??????????????????? | | # #### ## ;###??????????????????? | | # % ### ###### ##????????????????????? | | ## ### #?????##?????????????????????? | | ######### #?#####????????????????????????????? | | #???????# #??????????????????????????????????? | | #???????# #??????????????????????????????????? | | #??????# ##??????????????????????????????????? | | #??????## ##???????????????????????????????????? | | #???????## ##????????????????????????????????????? | | ##???????###?????????????????????????????????????? | | %#???????????????????????????????????????????????? | | #??????????????????????????????????????????????? | | #?????????????????????????????????????????????? | | #?????????????????????????????????????????????? | | #?????????????????????????????????????????????? | | ####?????????????????????????????????????????????? | | ?????????????????????????????????????????????????? | | ?????????????????????????????????????????????????? | | ?????????????????????????????????????????????????? | | ?????????????????????????????????????????????????? | +----------------------------------------------------+ Best States ------------- Heat Dissipation 25 Energy Generation 10 Energy Capacity 250 Matter Stores 300 Matter Capacity 300 Sight Range 16 Robot Scan Range 14 Terrain Scan Density 10 Armor Coverage 100 Evasion (%) 50 Recoil Reduction 2 Item Schematics ----------------- None Robot Schematics ------------------ None Fabricated ------------ Nothing Repaired ---------- Assault Rifle | 17% | -10/Materials Lgt. Treads | 38% | -10/Materials Alien Tech Used ----------------- None Achievements -------------- None Challenges ------------ None Game ------ Seed CoreRemoteFragment Manual? 0 Play Time 00:24:30 Cumulative 95.7 hours Start 2025.06.26 @ 22:23:59 End 2025.06.29 @ 17:56:43 Sessions 2 Manual Loads 0 Difficulty Rogue Special Mode None Game No. 71 Rogue 71 Adventurer 0 Explorer 0 Win Type - Total 0 Types 0/0/0/0/0/0/0/0/0/0 Lore% 59 Gallery% 48 Achievement% 44 Wizard Run 0 Options --------- Layout 1 ASCII 0 Keyboard 0 Movement Mouse Keybinds 0 Fullscreen 1 Font 24/Smallcaps Map View 50x35 Zoom Use 0% Tactical HUD 1 Map Filters NONE Filters NONE Steam 1 RUN: 8f3c77ca-f4b5-4a00-9b1d-cc7443a6ebdf